[Event "Early-Titled-Tuesday-Blitz-October-10-2023"]
[Site "Chess.com"]
[Date "2023.10.10"]
[Round "5"]
[White "subham777"]
[Black "wonderfultime"]
[Result "0-1"]
[WhiteElo "2505"]
[BlackElo "2982"]
[TimeControl "180+1"]
[EndTime "8:54:22 PDT"]
[Termination "wonderfultime won on time"]

1. e4 {[%clk 0:03:00.9]} 1... c5 {[%clk 0:02:59.1]} 2. Nf3 {[%clk 0:03:00.5]}
2... Nf6 {[%clk 0:02:59.6]} 3. Nc3 {[%clk 0:02:59.1]} 3... d5 {[%clk 0:02:59.6]}
4. exd5 {[%clk 0:02:58.5]} 4... Nxd5 {[%clk 0:03:00.5]} 5. Be2 {[%clk
0:02:57.6]} 5... Nc6 {[%clk 0:03:00.3]} 6. O-O {[%clk 0:02:55.7]} 6... g6 {[%clk
0:02:58.7]} 7. Re1 {[%clk 0:02:54.9]} 7... Bg7 {[%clk 0:02:58.8]} 8. Nxd5 {[%clk
0:02:21.5]} 8... Qxd5 {[%clk 0:02:57.4]} 9. Bb5 {[%clk 0:02:17.1]} 9... O-O
{[%clk 0:02:55.9]} 10. Bxc6 {[%clk 0:02:14.6]} 10... Qxc6 {[%clk 0:02:56.8]} 11.
Rxe7 {[%clk 0:02:14.1]} 11... Be6 {[%clk 0:02:49.7]} 12. Ng5 {[%clk 0:01:52.1]}
12... Bd5 {[%clk 0:02:42.5]} 13. Nf3 {[%clk 0:01:33]} 13... Bf6 {[%clk
0:01:57.5]} 14. Re1 {[%clk 0:01:21.8]} 14... Rfe8 {[%clk 0:01:57.6]} 15. Rxe8+
{[%clk 0:01:18.6]} 15... Rxe8 {[%clk 0:01:58.5]} 16. d3 {[%clk 0:01:18.9]} 16...
b5 {[%clk 0:01:57.3]} 17. c3 {[%clk 0:01:03.2]} 17... b4 {[%clk 0:01:52.1]} 18.
Bd2 {[%clk 0:00:45.8]} 18... a5 {[%clk 0:01:51.6]} 19. a3 {[%clk 0:00:40.7]}
19... Be6 {[%clk 0:01:16.2]} 20. axb4 {[%clk 0:00:37.8]} 20... axb4 {[%clk
0:01:14.3]} 21. Rc1 {[%clk 0:00:33.7]} 21... Qd6 {[%clk 0:01:09.6]} 22. Be3
{[%clk 0:00:27.6]} 22... bxc3 {[%clk 0:01:05.8]} 23. bxc3 {[%clk 0:00:27]} 23...
Bd5 {[%clk 0:01:00.8]} 24. d4 {[%clk 0:00:26.3]} 24... c4 {[%clk 0:01:01]} 25.
Qd2 {[%clk 0:00:20.9]} 25... Bxf3 {[%clk 0:00:43.3]} 26. gxf3 {[%clk 0:00:20]}
26... Qd5 {[%clk 0:00:44.2]} 27. Kg2 {[%clk 0:00:19.5]} 27... g5 {[%clk
0:00:43.2]} 28. h3 {[%clk 0:00:17.8]} 28... h5 {[%clk 0:00:43.3]} 29. Rg1 {[%clk
0:00:15.8]} 29... g4 {[%clk 0:00:39.4]} 30. hxg4 {[%clk 0:00:15.3]} 30... hxg4
{[%clk 0:00:40.3]} 31. Kf1 {[%clk 0:00:13.7]} 31... Qxf3 {[%clk 0:00:37.5]} 32.
Qe2 {[%clk 0:00:13.5]} 32... Qh3+ {[%clk 0:00:37.4]} 33. Ke1 {[%clk 0:00:13.7]}
33... Re4 {[%clk 0:00:37.9]} 34. Qxc4 {[%clk 0:00:13.2]} 34... Rxe3+ {[%clk
0:00:33.3]} 35. fxe3 {[%clk 0:00:11.8]} 35... Qxe3+ {[%clk 0:00:34.2]} 36. Kf1
{[%clk 0:00:10.2]} 36... Qf3+ {[%clk 0:00:34.8]} 37. Ke1 {[%clk 0:00:09.8]}
37... Bh4+ {[%clk 0:00:35.5]} 38. Kd2 {[%clk 0:00:08.1]} 38... Qf2+ {[%clk
0:00:35.5]} 39. Kd3 {[%clk 0:00:05.6]} 39... Qxg1 {[%clk 0:00:35.6]} 40. Qc8+
{[%clk 0:00:06.3]} 40... Kg7 {[%clk 0:00:36.2]} 41. Kc4 {[%clk 0:00:05.9]} 41...
Qf1+ {[%clk 0:00:36.3]} 42. Kc5 {[%clk 0:00:05.9]} 42... Qf3 {[%clk 0:00:35.7]}
43. c4 {[%clk 0:00:05.5]} 43... Bf2 {[%clk 0:00:34.6]} 44. Qd7 {[%clk
0:00:04.3]} 44... g3 {[%clk 0:00:33]} 45. Qh3 {[%clk 0:00:04.5]} 45... Qf4
{[%clk 0:00:32]} 46. Kb5 {[%clk 0:00:03.1]} 46... Bxd4 {[%clk 0:00:31.5]} 47. c5
{[%clk 0:00:02.3]} 47... Qg5 {[%clk 0:00:31.4]} 48. Kc4 {[%clk 0:00:01.7]} 48...
g2 {[%clk 0:00:30.1]} 49. c6 {[%clk 0:00:01.2]} 49... g1=Q {[%clk 0:00:30.2]}
0-1

[Event "Early-Titled-Tuesday-Blitz-October-10-2023"]
[Site "Chess.com"]
[Date "2023.10.10"]
[Round "5"]
[White "Korchmar_Vasiliy"]
[Black "K_A_S_T_O_R"]
[Result "0-1"]
[WhiteElo "2730"]
[BlackElo "2889"]
[TimeControl "180+1"]
[EndTime "8:54:24 PDT"]
[Termination "K_A_S_T_O_R won on time"]

1. e4 {[%clk 0:03:00.9]} 1... c5 {[%clk 0:02:59]} 2. d4 {[%clk 0:03:00.8]} 2...
cxd4 {[%clk 0:02:58.7]} 3. Qxd4 {[%clk 0:03:01.7]} 3... Nc6 {[%clk 0:02:58.2]}
4. Qd3 {[%clk 0:03:02.1]} 4... g6 {[%clk 0:02:58]} 5. Nc3 {[%clk 0:03:02.4]}
5... Bg7 {[%clk 0:02:58.5]} 6. Nf3 {[%clk 0:03:03]} 6... d6 {[%clk 0:02:58.7]}
7. Be2 {[%clk 0:03:03.5]} 7... Bg4 {[%clk 0:02:58.8]} 8. O-O {[%clk 0:03:00.1]}
8... Nf6 {[%clk 0:02:58.4]} 9. Nd5 {[%clk 0:03:00]} 9... Nd7 {[%clk 0:02:55.4]}
10. c3 {[%clk 0:02:47.2]} 10... O-O {[%clk 0:02:52.9]} 11. Bg5 {[%clk
0:02:46.2]} 11... Bxf3 {[%clk 0:02:46.8]} 12. Qxf3 {[%clk 0:02:45.2]} 12... h6
{[%clk 0:02:43.5]} 13. Bh4 {[%clk 0:02:45.1]} 13... g5 {[%clk 0:02:42.1]} 14.
Bg3 {[%clk 0:02:45.1]} 14... e6 {[%clk 0:02:34]} 15. Ne3 {[%clk 0:02:35.5]}
15... Nce5 {[%clk 0:02:28.2]} 16. Qh5 {[%clk 0:02:33.8]} 16... Nf6 {[%clk
0:02:26.6]} 17. Qh3 {[%clk 0:02:33.9]} 17... Nxe4 {[%clk 0:02:24.4]} 18. Bxe5
{[%clk 0:02:28.4]} 18... dxe5 {[%clk 0:02:21.2]} 19. Ng4 {[%clk 0:02:20.4]}
19... f5 {[%clk 0:02:10.4]} 20. Nxh6+ {[%clk 0:02:20.2]} 20... Bxh6 {[%clk
0:02:11]} 21. Qxh6 {[%clk 0:02:21.1]} 21... Qf6 {[%clk 0:02:11.3]} 22. Qh3
{[%clk 0:02:11.1]} 22... Rad8 {[%clk 0:02:09.1]} 23. Rad1 {[%clk 0:02:07.4]}
23... Kg7 {[%clk 0:02:07.2]} 24. Qe3 {[%clk 0:02:03.6]} 24... b6 {[%clk
0:02:07.2]} 25. a4 {[%clk 0:01:49.1]} 25... Nc5 {[%clk 0:02:04.2]} 26. a5 {[%clk
0:01:39.3]} 26... f4 {[%clk 0:02:01.7]} 27. Qc1 {[%clk 0:01:39.5]} 27... Nb3
{[%clk 0:01:43.9]} 28. Qc2 {[%clk 0:01:33.4]} 28... Nxa5 {[%clk 0:01:44.3]} 29.
Bb5 {[%clk 0:01:23.1]} 29... Nb7 {[%clk 0:01:40.7]} 30. b4 {[%clk 0:01:20.4]}
30... Nd6 {[%clk 0:01:38.6]} 31. Bc6 {[%clk 0:01:20.6]} 31... Nf5 {[%clk
0:01:28.5]} 32. Bf3 {[%clk 0:01:09]} 32... Rf7 {[%clk 0:01:22.9]} 33. Rxd8
{[%clk 0:01:07]} 33... Qxd8 {[%clk 0:01:22.9]} 34. Qe4 {[%clk 0:01:03.8]} 34...
Kf6 {[%clk 0:01:22.2]} 35. Re1 {[%clk 0:01:03.5]} 35... Qc7 {[%clk 0:01:22.3]}
36. c4 {[%clk 0:00:57.8]} 36... Rd7 {[%clk 0:01:21.3]} 37. h3 {[%clk 0:00:46.1]}
37... Rd4 {[%clk 0:01:20.3]} 38. Qa8 {[%clk 0:00:46]} 38... Rd8 {[%clk
0:01:20.3]} 39. Qe4 {[%clk 0:00:46.1]} 39... a5 {[%clk 0:01:16.5]} 40. bxa5
{[%clk 0:00:44.6]} 40... bxa5 {[%clk 0:01:17]} 41. Bg4 {[%clk 0:00:34.8]} 41...
Nd4 {[%clk 0:01:12.7]} 42. Bh5 {[%clk 0:00:28.7]} 42... Rg8 {[%clk 0:01:11.3]}
43. Rb1 {[%clk 0:00:24.3]} 43... Rg7 {[%clk 0:01:09.9]} 44. Rb5 {[%clk
0:00:12.5]} 44... Nxb5 {[%clk 0:01:08.7]} 45. cxb5 {[%clk 0:00:13.1]} 45... Qd6
{[%clk 0:01:06.9]} 46. Qa8 {[%clk 0:00:09.8]} 46... Rh7 {[%clk 0:00:58.1]} 47.
b6 {[%clk 0:00:06.8]} 47... Qe7 {[%clk 0:00:47.7]} 48. Bf3 {[%clk 0:00:02.1]}
48... g4 {[%clk 0:00:43.7]} 49. hxg4 {[%clk 0:00:01.5]} 49... Qd6 {[%clk
0:00:38.2]} 0-1

[Event "Early-Titled-Tuesday-Blitz-October-10-2023"]
[Site "Chess.com"]
[Date "2023.10.10"]
[Round "5"]
[White "Rozhkov_V"]
[Black "Let_it_be_1"]
[Result "1/2-1/2"]
[WhiteElo "2441"]
[BlackElo "2549"]
[TimeControl "180+1"]
[EndTime "8:54:24 PDT"]
[Termination "Game drawn by repetition"]

1. e4 {[%clk 0:03:00.9]} 1... e6 {[%clk 0:02:59.8]} 2. d4 {[%clk 0:03:00.4]}
2... d5 {[%clk 0:03:00.6]} 3. e5 {[%clk 0:03:01.1]} 3... c5 {[%clk 0:03:00.4]}
4. c3 {[%clk 0:03:01.8]} 4... Qb6 {[%clk 0:03:00.7]} 5. Nf3 {[%clk 0:03:01.6]}
5... Nc6 {[%clk 0:03:00.6]} 6. a3 {[%clk 0:03:01.4]} 6... Bd7 {[%clk 0:03:00.4]}
7. b4 {[%clk 0:03:01.1]} 7... cxd4 {[%clk 0:03:00.8]} 8. cxd4 {[%clk 0:03:02]}
8... Rc8 {[%clk 0:03:01]} 9. Bb2 {[%clk 0:03:02.7]} 9... Na5 {[%clk 0:03:01]}
10. Nbd2 {[%clk 0:02:55.5]} 10... Nc4 {[%clk 0:03:01]} 11. Nxc4 {[%clk
0:02:55.8]} 11... dxc4 {[%clk 0:03:00.9]} 12. Rc1 {[%clk 0:02:56.2]} 12... a5
{[%clk 0:02:59.7]} 13. Bxc4 {[%clk 0:02:28.7]} 13... Bxb4+ {[%clk 0:02:59]} 14.
axb4 {[%clk 0:02:12.9]} 14... Qxb4+ {[%clk 0:02:58.6]} 15. Bc3 {[%clk
0:01:52.2]} 15... Qxc4 {[%clk 0:02:50.1]} 16. Nd2 {[%clk 0:01:50.3]} 16... Qd3
{[%clk 0:02:35.9]} 17. Bxa5 {[%clk 0:01:44.8]} 17... Ne7 {[%clk 0:02:09.4]} 18.
Rxc8+ {[%clk 0:01:33.6]} 18... Nxc8 {[%clk 0:02:02.8]} 19. Nf3 {[%clk
0:01:32.1]} 19... Qa3 {[%clk 0:01:45.7]} 20. Bd2 {[%clk 0:01:07.4]} 20... Qa6
{[%clk 0:01:40.8]} 21. h4 {[%clk 0:00:58.2]} 21... O-O {[%clk 0:01:37.6]} 22. h5
{[%clk 0:00:58.2]} 22... h6 {[%clk 0:01:35.1]} 23. g4 {[%clk 0:00:54.9]} 23...
Bc6 {[%clk 0:01:27.7]} 24. g5 {[%clk 0:00:41.2]} 24... Qd3 {[%clk 0:01:15.5]}
25. Rh3 {[%clk 0:00:37.1]} 25... Bb5 {[%clk 0:01:15.6]} 26. Rh1 {[%clk
0:00:22.1]} 26... Qe4+ {[%clk 0:01:07.6]} 27. Be3 {[%clk 0:00:21.3]} 27... hxg5
{[%clk 0:01:07.7]} 28. h6 {[%clk 0:00:18.1]} 28... Ne7 {[%clk 0:00:23.9]} 29.
hxg7 {[%clk 0:00:17.2]} 29... Kxg7 {[%clk 0:00:24.2]} 30. Kd2 {[%clk 0:00:12.4]}
30... Bc6 {[%clk 0:00:19]} 31. Rh3 {[%clk 0:00:08.8]} 31... g4 {[%clk
0:00:17.7]} 32. Ng5 {[%clk 0:00:09.4]} 32... Qd5 {[%clk 0:00:12.5]} 33. Rh7+
{[%clk 0:00:07.9]} 33... Kg8 {[%clk 0:00:12.7]} 34. Qxg4 {[%clk 0:00:05.3]}
34... Qa2+ {[%clk 0:00:10.7]} 35. Ke1 {[%clk 0:00:04.7]} 35... Qb1+ {[%clk
0:00:10.4]} 36. Kd2 {[%clk 0:00:02.7]} 36... Ng6 {[%clk 0:00:07.9]} 37. Qh5
{[%clk 0:00:01.9]} 37... Qb2+ {[%clk 0:00:06.1]} 38. Ke1 {[%clk 0:00:01.6]}
38... Qb1+ {[%clk 0:00:05.9]} 39. Kd2 {[%clk 0:00:01.8]} 39... Qb2+ {[%clk
0:00:05.4]} 40. Ke1 {[%clk 0:00:02.5]} 40... Qb1+ {[%clk 0:00:05.6]} 41. Kd2
{[%clk 0:00:03]} 1/2-1/2

[Event "Early-Titled-Tuesday-Blitz-October-10-2023"]
[Site "Chess.com"]
[Date "2023.10.10"]
[Round "5"]
[White "slorovel"]
[Black "LeoWin2012"]
[Result "1-0"]
[WhiteElo "2510"]
[BlackElo "2319"]
[TimeControl "180+1"]
[EndTime "8:54:24 PDT"]
[Termination "slorovel won by checkmate"]

1. e4 {[%clk 0:03:00.9]} 1... e5 {[%clk 0:02:58.6]} 2. Nf3 {[%clk 0:02:51.5]}
2... Nc6 {[%clk 0:02:58.3]} 3. Bb5 {[%clk 0:02:46.5]} 3... a6 {[%clk 0:02:58.6]}
4. Ba4 {[%clk 0:02:46.2]} 4... b5 {[%clk 0:02:59.1]} 5. Bb3 {[%clk 0:02:46.2]}
5... Nf6 {[%clk 0:02:58.3]} 6. O-O {[%clk 0:02:45.5]} 6... d6 {[%clk 0:02:58.2]}
7. Re1 {[%clk 0:02:43.4]} 7... Be7 {[%clk 0:02:58.5]} 8. c3 {[%clk 0:02:43.3]}
8... h6 {[%clk 0:02:57.5]} 9. d4 {[%clk 0:02:43.4]} 9... O-O {[%clk 0:02:55.3]}
10. Be3 {[%clk 0:02:41.2]} 10... Nxe4 {[%clk 0:02:50.6]} 11. Bd5 {[%clk
0:02:40.6]} 11... exd4 {[%clk 0:02:47.1]} 12. cxd4 {[%clk 0:02:38.9]} 12... Nxf2
{[%clk 0:02:38.5]} 13. Bxf2 {[%clk 0:02:32.3]} 13... Bb7 {[%clk 0:02:38.6]} 14.
Qe2 {[%clk 0:02:01.1]} 14... Bf6 {[%clk 0:02:35.1]} 15. Nc3 {[%clk 0:01:56.1]}
15... b4 {[%clk 0:02:31.1]} 16. Ne4 {[%clk 0:01:53.8]} 16... Bxd4 {[%clk
0:02:21.7]} 17. Nxd4 {[%clk 0:01:42.1]} 17... Nxd4 {[%clk 0:02:18]} 18. Bxd4
{[%clk 0:01:23.7]} 18... Bxd5 {[%clk 0:02:17.6]} 19. Qg4 {[%clk 0:01:23.6]}
19... f6 {[%clk 0:02:03.3]} 20. Rf1 {[%clk 0:00:58.5]} 20... Bxe4 {[%clk
0:01:37]} 21. Qxe4 {[%clk 0:00:59.4]} 21... c5 {[%clk 0:01:35.9]} 22. Qd5+
{[%clk 0:00:51.8]} 22... Kh8 {[%clk 0:01:31.9]} 23. Bf2 {[%clk 0:00:39.9]} 23...
Qc7 {[%clk 0:01:21.7]} 24. Bg3 {[%clk 0:00:36.9]} 24... Rad8 {[%clk 0:01:18.4]}
25. Rad1 {[%clk 0:00:18.8]} 25... Qf7 {[%clk 0:01:06.1]} 26. Qxf7 {[%clk
0:00:17.9]} 26... Rxf7 {[%clk 0:01:07]} 27. Rxd6 {[%clk 0:00:18.1]} 27... Re8
{[%clk 0:00:46.9]} 28. Rfd1 {[%clk 0:00:14.3]} 28... Re2 {[%clk 0:00:46.3]} 29.
R6d2 {[%clk 0:00:12.5]} 29... Rfe7 {[%clk 0:00:44.7]} 30. Kf1 {[%clk 0:00:13]}
30... Rxd2 {[%clk 0:00:37]} 31. Rxd2 {[%clk 0:00:13.9]} 31... c4 {[%clk
0:00:36]} 32. Rd4 {[%clk 0:00:11.8]} 32... c3 {[%clk 0:00:35.2]} 33. Rxb4 {[%clk
0:00:11.6]} 33... cxb2 {[%clk 0:00:21.1]} 34. Rxb2 {[%clk 0:00:11.3]} 34... Re4
{[%clk 0:00:20.5]} 35. Kf2 {[%clk 0:00:10.8]} 35... Ra4 {[%clk 0:00:20.4]} 36.
h4 {[%clk 0:00:10.2]} 36... g5 {[%clk 0:00:20.3]} 37. hxg5 {[%clk 0:00:10.3]}
37... hxg5 {[%clk 0:00:20.2]} 38. Bd6 {[%clk 0:00:09.7]} 38... Kg7 {[%clk
0:00:19.8]} 39. a3 {[%clk 0:00:09.8]} 39... Kg6 {[%clk 0:00:20.2]} 40. g3 {[%clk
0:00:08.3]} 40... f5 {[%clk 0:00:20.2]} 41. Rb6 {[%clk 0:00:07.7]} 41... Kh5
{[%clk 0:00:20.3]} 42. Kf3 {[%clk 0:00:07.7]} 42... f4 {[%clk 0:00:17.6]} 43.
g4+ {[%clk 0:00:07.3]} 43... Kh4 {[%clk 0:00:16.6]} 44. Bb4 {[%clk 0:00:05.3]}
44... Rxa3+ {[%clk 0:00:08.8]} 45. Bxa3 {[%clk 0:00:05.1]} 45... Kh3 {[%clk
0:00:09.7]} 46. Rh6# {[%clk 0:00:05.1]} 1-0

[Event "Early-Titled-Tuesday-Blitz-October-10-2023"]
[Site "Chess.com"]
[Date "2023.10.10"]
[Round "5"]
[White "Savagelittlemole"]
[Black "crazy_m_attack"]
[Result "0-1"]
[WhiteElo "2542"]
[BlackElo "2429"]
[TimeControl "180+1"]
[EndTime "8:54:26 PDT"]
[Termination "crazy_m_attack won by resignation"]

1. e4 {[%clk 0:03:00.9]} 1... e5 {[%clk 0:02:59.6]} 2. Nf3 {[%clk 0:03:00.8]}
2... Nc6 {[%clk 0:02:58.2]} 3. Bc4 {[%clk 0:03:01.2]} 3... Nf6 {[%clk
0:02:58.1]} 4. d3 {[%clk 0:03:01.5]} 4... Be7 {[%clk 0:02:58.4]} 5. O-O {[%clk
0:03:01.1]} 5... O-O {[%clk 0:02:58.6]} 6. c3 {[%clk 0:02:59.8]} 6... d5 {[%clk
0:02:58.9]} 7. exd5 {[%clk 0:02:59.2]} 7... Nxd5 {[%clk 0:02:59.8]} 8. Re1
{[%clk 0:02:56.6]} 8... Bg4 {[%clk 0:02:52.4]} 9. h3 {[%clk 0:02:56.1]} 9... Bh5
{[%clk 0:02:52.5]} 10. Nbd2 {[%clk 0:02:47.9]} 10... Nb6 {[%clk 0:02:49.8]} 11.
Bb5 {[%clk 0:02:46.1]} 11... f6 {[%clk 0:02:48.9]} 12. Bxc6 {[%clk 0:02:41.1]}
12... bxc6 {[%clk 0:02:48.3]} 13. Nf1 {[%clk 0:02:39.9]} 13... Bd6 {[%clk
0:02:41.6]} 14. Ng3 {[%clk 0:02:39.7]} 14... Bg6 {[%clk 0:02:38.9]} 15. Nh4
{[%clk 0:02:25.2]} 15... Bf7 {[%clk 0:02:37.4]} 16. Nhf5 {[%clk 0:02:24.9]}
16... Bg6 {[%clk 0:02:31.3]} 17. Qf3 {[%clk 0:02:20.4]} 17... Nd5 {[%clk
0:02:20.5]} 18. c4 {[%clk 0:02:08.4]} 18... Ne7 {[%clk 0:02:13.2]} 19. Nxe7+
{[%clk 0:02:05.9]} 19... Bxe7 {[%clk 0:02:06.4]} 20. Qxc6 {[%clk 0:02:02.3]}
20... Qxd3 {[%clk 0:01:53.6]} 21. Be3 {[%clk 0:01:57.8]} 21... Qd6 {[%clk
0:01:29.1]} 22. Qxd6 {[%clk 0:01:21.1]} 22... cxd6 {[%clk 0:01:30]} 23. Rad1
{[%clk 0:01:16.3]} 23... f5 {[%clk 0:01:26.5]} 24. Bd2 {[%clk 0:01:11.4]} 24...
Rab8 {[%clk 0:01:14.2]} 25. b3 {[%clk 0:01:11.4]} 25... Rfd8 {[%clk 0:01:06.9]}
26. Bc1 {[%clk 0:00:59.4]} 26... Bf8 {[%clk 0:00:37.9]} 27. Ne2 {[%clk
0:00:57.2]} 27... f4 {[%clk 0:00:36.4]} 28. Nc3 {[%clk 0:00:56.6]} 28... Bf7
{[%clk 0:00:30.8]} 29. Ne4 {[%clk 0:00:50.5]} 29... d5 {[%clk 0:00:25.4]} 30.
cxd5 {[%clk 0:00:47.7]} 30... Bxd5 {[%clk 0:00:22.1]} 31. Nc3 {[%clk 0:00:46.4]}
31... Bb7 {[%clk 0:00:17.3]} 32. Rxd8 {[%clk 0:00:44.8]} 32... Rxd8 {[%clk
0:00:18.2]} 33. Rxe5 {[%clk 0:00:43.8]} 33... Bb4 {[%clk 0:00:15.1]} 34. Bb2
{[%clk 0:00:34.5]} 34... Rd2 {[%clk 0:00:14.5]} 35. Na4 {[%clk 0:00:34.1]} 35...
Rd1+ {[%clk 0:00:10.3]} 36. Kh2 {[%clk 0:00:34]} 36... Bd6 {[%clk 0:00:09.4]}
37. Rg5 {[%clk 0:00:22.2]} 37... f3+ {[%clk 0:00:05.6]} 38. g3 {[%clk
0:00:22.1]} 38... g6 {[%clk 0:00:05.6]} 39. Nc5 {[%clk 0:00:18.4]} 39... Bc6
{[%clk 0:00:03.5]} 40. b4 {[%clk 0:00:10.8]} 40... Rd2 {[%clk 0:00:04]} 41. Be5
{[%clk 0:00:10.8]} 41... Rxf2+ {[%clk 0:00:03.7]} 42. Kg1 {[%clk 0:00:11.3]}
42... Rg2+ {[%clk 0:00:04.1]} 43. Kf1 {[%clk 0:00:11.9]} 43... Bb5+ {[%clk
0:00:04.7]} 44. Ke1 {[%clk 0:00:11.9]} 44... f2+ {[%clk 0:00:04.9]} 45. Kd2
{[%clk 0:00:12.3]} 45... f1=Q+ {[%clk 0:00:05.8]} 0-1

[Event "Early-Titled-Tuesday-Blitz-October-10-2023"]
[Site "Chess.com"]
[Date "2023.10.10"]
[Round "5"]
[White "DonCiao"]
[Black "LileKoridze"]
[Result "0-1"]
[WhiteElo "2060"]
[BlackElo "2343"]
[TimeControl "180+1"]
[EndTime "8:54:26 PDT"]
[Termination "LileKoridze won on time"]

1. c4 {[%clk 0:03:00.9]} 1... e5 {[%clk 0:02:58.1]} 2. g3 {[%clk 0:03:00.4]}
2... Nf6 {[%clk 0:02:57.7]} 3. Bg2 {[%clk 0:02:59.4]} 3... Nc6 {[%clk 0:02:52]}
4. Nc3 {[%clk 0:02:58.2]} 4... Bb4 {[%clk 0:02:51.6]} 5. Nd5 {[%clk 0:02:57.8]}
5... Bc5 {[%clk 0:02:42.6]} 6. Nf3 {[%clk 0:02:52.2]} 6... d6 {[%clk 0:02:40.8]}
7. d3 {[%clk 0:02:51.5]} 7... h6 {[%clk 0:02:35.7]} 8. O-O {[%clk 0:02:49.1]}
8... O-O {[%clk 0:02:34.6]} 9. a3 {[%clk 0:02:46.6]} 9... a5 {[%clk 0:02:34.3]}
10. b3 {[%clk 0:02:42.4]} 10... Be6 {[%clk 0:02:29.2]} 11. Nd2 {[%clk
0:02:32.5]} 11... Bxd5 {[%clk 0:01:41.4]} 12. cxd5 {[%clk 0:02:31.4]} 12... Ne7
{[%clk 0:01:41.3]} 13. e4 {[%clk 0:02:25.2]} 13... c6 {[%clk 0:01:39.4]} 14.
dxc6 {[%clk 0:02:16.4]} 14... bxc6 {[%clk 0:01:37.4]} 15. Bb2 {[%clk 0:02:14.5]}
15... Qc7 {[%clk 0:01:31.9]} 16. Nc4 {[%clk 0:02:11.5]} 16... Ng6 {[%clk
0:01:30.4]} 17. Qd2 {[%clk 0:02:05.2]} 17... d5 {[%clk 0:01:29.7]} 18. Ne3
{[%clk 0:01:54.6]} 18... Rfd8 {[%clk 0:01:22.1]} 19. Rac1 {[%clk 0:01:51.1]}
19... Qa7 {[%clk 0:01:20.1]} 20. exd5 {[%clk 0:01:44.8]} 20... cxd5 {[%clk
0:01:18.6]} 21. Nf5 {[%clk 0:01:41.8]} 21... Rac8 {[%clk 0:01:07.7]} 22. Rc2
{[%clk 0:01:20]} 22... Bf8 {[%clk 0:00:51.8]} 23. Rfc1 {[%clk 0:01:15.2]} 23...
Rxc2 {[%clk 0:00:44.1]} 24. Qxc2 {[%clk 0:01:09]} 24... Qd7 {[%clk 0:00:34.7]}
25. Bh3 {[%clk 0:01:04.2]} 25... Qb5 {[%clk 0:00:31.6]} 26. Qc7 {[%clk
0:00:54.1]} 26... Rd7 {[%clk 0:00:27.6]} 27. Nxh6+ {[%clk 0:00:52.3]} 27... gxh6
{[%clk 0:00:27.4]} 28. Bxd7 {[%clk 0:00:51.9]} 28... Nxd7 {[%clk 0:00:25.7]} 29.
Qc3 {[%clk 0:00:36.3]} 29... Nc5 {[%clk 0:00:24.4]} 30. d4 {[%clk 0:00:31.1]}
30... exd4 {[%clk 0:00:24.1]} 31. Qxd4 {[%clk 0:00:30.1]} 31... Qxb3 {[%clk
0:00:23.4]} 32. Ba1 {[%clk 0:00:21.3]} 32... Ne6 {[%clk 0:00:14.8]} 33. Qf6
{[%clk 0:00:20.2]} 33... Qxa3 {[%clk 0:00:08.5]} 34. Rb1 {[%clk 0:00:14.2]}
34... Qd3 {[%clk 0:00:05.7]} 35. Rc1 {[%clk 0:00:13]} 35... Qe4 {[%clk
0:00:04.1]} 36. h4 {[%clk 0:00:10.7]} 36... Qg4 {[%clk 0:00:03.4]} 37. Rc8
{[%clk 0:00:07.5]} 37... Qd1+ {[%clk 0:00:02.5]} 38. Kh2 {[%clk 0:00:06.7]}
38... Qg4 {[%clk 0:00:02.4]} 39. Rxf8+ {[%clk 0:00:04.5]} 39... Kxf8 {[%clk
0:00:02.2]} 0-1

[Event "Early-Titled-Tuesday-Blitz-October-10-2023"]
[Site "Chess.com"]
[Date "2023.10.10"]
[Round "5"]
[White "Itk04"]
[Black "Journey_to_GrandMaster_YT"]
[Result "0-1"]
[WhiteElo "2747"]
[BlackElo "2633"]
[TimeControl "180+1"]
[EndTime "8:54:30 PDT"]
[Termination "Journey_to_GrandMaster_YT won by resignation"]

1. d4 {[%clk 0:03:00.9]} 1... d6 {[%clk 0:03:00.9]} 2. c4 {[%clk 0:02:56.4]}
2... e5 {[%clk 0:03:00.2]} 3. d5 {[%clk 0:02:33.5]} 3... f5 {[%clk 0:02:59.8]}
4. Nc3 {[%clk 0:02:33.7]} 4... Nf6 {[%clk 0:02:59.6]} 5. Bg5 {[%clk 0:02:31.6]}
5... Be7 {[%clk 0:02:59.2]} 6. e4 {[%clk 0:02:29.9]} 6... fxe4 {[%clk
0:02:55.9]} 7. Bxf6 {[%clk 0:02:20.3]} 7... Bxf6 {[%clk 0:02:55.7]} 8. Nxe4
{[%clk 0:02:19.7]} 8... O-O {[%clk 0:02:55.2]} 9. Bd3 {[%clk 0:02:04]} 9... Bf5
{[%clk 0:02:28.3]} 10. Ne2 {[%clk 0:02:02.1]} 10... Be7 {[%clk 0:02:17.2]} 11.
O-O {[%clk 0:02:01]} 11... Nd7 {[%clk 0:02:16.9]} 12. N4g3 {[%clk 0:01:44.5]}
12... Bxd3 {[%clk 0:02:15.7]} 13. Qxd3 {[%clk 0:01:45.4]} 13... Nc5 {[%clk
0:02:16.1]} 14. Qc2 {[%clk 0:01:45.8]} 14... a5 {[%clk 0:02:15.4]} 15. Ne4
{[%clk 0:01:40.7]} 15... b6 {[%clk 0:02:09.6]} 16. b3 {[%clk 0:01:33.4]} 16...
Qe8 {[%clk 0:02:05.7]} 17. Nxc5 {[%clk 0:01:07.2]} 17... bxc5 {[%clk 0:02:05.3]}
18. Nc3 {[%clk 0:01:07.8]} 18... Rf4 {[%clk 0:01:56.1]} 19. g3 {[%clk
0:01:05.8]} 19... Rf3 {[%clk 0:01:52.4]} 20. Nb5 {[%clk 0:01:02.6]} 20... Qd7
{[%clk 0:01:47.1]} 21. Kg2 {[%clk 0:00:54.2]} 21... Raf8 {[%clk 0:01:39.5]} 22.
Qe4 {[%clk 0:00:53.9]} 22... Bd8 {[%clk 0:01:33.2]} 23. Qxf3 {[%clk 0:00:26.5]}
23... Rxf3 {[%clk 0:01:30]} 24. Kxf3 {[%clk 0:00:27.4]} 24... Qh3 {[%clk
0:01:07.6]} 25. Rae1 {[%clk 0:00:19.5]} 25... h5 {[%clk 0:01:03.3]} 26. Nc3
{[%clk 0:00:11.5]} 26... g5 {[%clk 0:00:53.5]} 27. Ne4 {[%clk 0:00:09.4]} 27...
g4+ {[%clk 0:00:51.4]} 28. Ke2 {[%clk 0:00:07]} 28... Qxh2 {[%clk 0:00:49.4]}
29. Kd3 {[%clk 0:00:05.4]} 29... Qg2 {[%clk 0:00:47.1]} 30. Rg1 {[%clk
0:00:05.6]} 30... Qf3+ {[%clk 0:00:47]} 31. Re3 {[%clk 0:00:06.3]} 31... Qf5
{[%clk 0:00:46.9]} 32. Rh1 {[%clk 0:00:06.5]} 32... Kg7 {[%clk 0:00:40.5]} 33.
Ke2 {[%clk 0:00:05.8]} 33... Kg6 {[%clk 0:00:40.6]} 34. Nd2 {[%clk 0:00:06]}
34... Qc2 {[%clk 0:00:39.8]} 35. f4 {[%clk 0:00:03.3]} 35... gxf3+ {[%clk
0:00:36.1]} 36. Rxf3 {[%clk 0:00:02.6]} 36... Bg5 {[%clk 0:00:36]} 37. Rd1
{[%clk 0:00:03.3]} 37... e4 {[%clk 0:00:32.5]} 38. Rf4 {[%clk 0:00:01.7]} 38...
Bxf4 {[%clk 0:00:31.8]} 39. gxf4 {[%clk 0:00:02.6]} 39... Qd3+ {[%clk
0:00:29.6]} 40. Ke1 {[%clk 0:00:02.2]} 40... Qg3+ {[%clk 0:00:28]} 41. Ke2
{[%clk 0:00:02.5]} 41... Qd3+ {[%clk 0:00:21.4]} 42. Ke1 {[%clk 0:00:03]} 42...
e3 {[%clk 0:00:22]} 43. Nf3 {[%clk 0:00:03.4]} 43... Qc3+ {[%clk 0:00:21.4]} 44.
Ke2 {[%clk 0:00:03.5]} 44... Qc2+ {[%clk 0:00:17.4]} 45. Nd2 {[%clk 0:00:03.6]}
45... exd2 {[%clk 0:00:16.8]} 46. Rxd2 {[%clk 0:00:04.5]} 46... Qe4+ {[%clk
0:00:17.3]} 0-1